bitfinex-derivatives/quotes_ETHF0:USTF0_20250701
["timestamp","ask_amount","ask_price","bid_price","bid_amount"]
[1751410141650,2.14789,2409.3,2409.2,3.25465364]
[1751410141851,1.3179,2409.3,2409.2,3.25465364]
[1751410146652,2.14789,2409.3,2409.2,3.25465364]
[1751410146851,1.3179,2409.3,2409.2,3.25465364]
[1751410148854,0.82993,2409.5,2409.4,0.82996]
[1751410149056,26.00293,2409.5,2409.4,0.82996]
[1751410149245,25.173,2409.5,2409.4,0.82996]
[1751410149853,11.701,2409.6,2409.5,0.82992]
[1751410150048,37.70289,2409.6,2409.5,0.82992]
[1751410150955,36.873,2409.6,2409.5,0.82992]
[1751410152156,37.70289,2409.6,2409.5,0.82992]
[1751410153655,36.873,2409.6,2409.5,0.82992]
[1751410154657,37.70289,2409.6,2409.5,0.82992]
[1751410154955,36.873,2409.6,2409.5,0.82992]
[1751410156854,37.70289,2409.6,2409.5,0.82992]
[1751410157357,36.873,2409.6,2409.5,0.82992]
[1751410157560,2.90458,2409.7,2409.5,0.82992]
[1751410157758,25.169,2409.6,2409.5,0.82992]
[1751410157958,25.99889,2409.6,2409.5,0.82992]
[1751410158356,0.82992,2409.5,2409.4,2.42463364]
[1751410158755,0.82992,2409.5,2409.4,0.82996]
[1751410158957,2.87522,2409.5,2409.4,0.82996]
[1751410161063,2.87522,2409.5,2409.3,0.6794]
[1751410161064,2.0453,2409.5,2409.3,0.82999]
[1751410161358,26.5709,2409.4,2409.3,0.82999]
[1751410161559,26.5709,2409.4,2409.2,0.83]
[1751410161560,27.40089,2409.4,2409.2,0.83]
[1751410161860,27.40089,2409.4,2409.1,3.10263364]
[1751410162056,27.40089,2409.4,2409.2,0.83]
[1751410163061,0.82999,2409.3,2409.2,0.83]
[1751410163358,27.40088,2409.4,2409.2,0.83]
[1751410164859,27.40088,2409.4,2409.3,0.82999]
[1751410165162,0.7313,2409.7,2409.1,5.17779364]
[1751410165361,2.1927,2409.7,2409.6,0.82989]
[1751410165758,27.3597,2409.7,2409.6,1.51279]
[1751410165960,28.18955,2409.7,2409.6,0.6829]
[1751410166259,25.167,2409.7,2409.6,1.51279]
[1751410166461,0.82984,2409.8,2409.6,1.51279]
[1751410166660,25.166,2409.7,2409.6,0.6829]
[1751410166959,25.166,2409.7,2409.6,1.51277]
[1751410170367,25.99585,2409.7,2409.6,1.51277]
[1751410171379,25.99585,2409.7,2409.6,0.6829]
[1751410175668,27.41905,2409.7,2409.6,0.6829]
[1751410176473,27.41905,2409.7,2409.6,1.51279]
[1751410179470,27.41705,2409.7,2409.6,0.6829]
[1751410180274,1.4232,2409.7,2409.6,1.51279]
[1751410180465,25.99385,2409.7,2409.6,1.51279]
[1751410180774,25.164,2409.7,2409.6,1.51279]
[1751410181469,25.99385,2409.7,2409.6,1.51279]
[1751410181662,25.99385,2409.7,2409.6,0.6829]
[1751410183374,25.99385,2409.7,2409.6,1.51279]
[1751410183565,0.82984,2409.8,2409.6,1.51279]
[1751410183770,25.99285,2409.7,2409.6,1.51279]
[1751410184276,25.99285,2409.7,2409.6,0.6829]
[1751410188280,25.99285,2409.7,2409.6,1.51279]
[1751410188475,25.99285,2409.7,2409.6,0.6829]
[1751410188984,25.99085,2409.7,2409.6,0.6829]
[1751410189683,25.99085,2409.7,2409.6,1.51279]
[1751410190483,25.99085,2409.7,2409.6,0.6829]
[1751410194989,0.82992,2409.5,2409.4,0.82993]
[1751410195188,0.82992,2409.5,2409.4,1.53373]
[1751410195390,0.82992,2409.5,2409.4,1.53376]
[1751410195583,0.82992,2409.5,2409.4,0.7038]
[1751410195890,0.82999,2409.3,2409.2,0.83002]
[1751410196887,0.82999,2409.3,2409.2,3.25465364]
[1751410197090,2.15708,2409.4,2409.2,3.25465364]
[1751410197282,1.3271,2409.4,2409.2,3.25465364]
[1751410197483,0.82999,2409.3,2409.2,3.25465364]
[1751410197980,1.3271,2409.4,2409.2,3.25465364]
[1751410198488,0.82999,2409.3,2409.2,3.25465364]
[1751410199082,2.15708,2409.4,2409.2,2.42463364]
[1751410199282,2.15708,2409.4,2409.2,3.25462364]
[1751410199485,0.82999,2409.3,2409.2,3.25462364]
[1751410199785,2.15708,2409.4,2409.2,3.25462364]
[1751410200387,0.82999,2409.3,2409.2,3.25462364]
[1751410200590,2.15708,2409.4,2409.2,3.25462364]
[1751410201090,0.82999,2409.3,2409.2,3.25462364]
[1751410203288,2.15708,2409.4,2409.3,0.82999]
[1751410204689,2.15708,2409.4,2409.2,2.42463364]
[1751410204690,26.65845,2409.5,2409.2,2.42463364]
[1751410205092,25.98895,2409.5,2409.2,2.42463364]
[1751410205289,25.98895,2409.5,2409.4,3.25459364]
[1751410205792,25.159,2409.5,2409.4,3.25459364]
[1751410205991,25.98892,2409.5,2409.4,3.25459364]
[1751410206588,25.98892,2409.5,2409.4,2.42463364]
[1751410207391,25.98892,2409.5,2409.4,3.12273364]
[1751410209392,27.39892,2409.5,2409.4,3.12273364]
[1751410212294,25.159,2409.5,2409.4,3.95269364]
[1751410212887,2.1197,2409.8,2409.4,3.12273364]
[1751410213087,25.98487,2409.7,2409.6,3.25451364]
[1751410213597,25.98487,2409.7,2409.6,2.42463364]
[1751410214391,25.98487,2409.7,2409.6,3.25452364]
[1751410217095,13.138,2409.8,2409.6,3.25452364]
[1751410217292,38.291,2409.8,2409.7,0.82985]
[1751410217493,39.12084,2409.8,2409.7,0.7079]
[1751410217800,13.96784,2409.8,2409.7,0.7079]
[1751410217998,39.11984,2409.8,2409.7,1.53775]
[1751410218199,11.694,2409.8,2409.7,1.53775]
[1751410218603,36.846,2409.8,2409.7,1.53775]
[1751410218796,11.694,2409.8,2409.7,1.53775]
[1751410218997,36.846,2409.8,2409.7,1.53775]
[1751410219199,11.694,2409.8,2409.7,1.53775]
[1751410222204,0.82978,2409.9,2409.8,0.82982]
[1751410222508,25.97978,2409.9,2409.8,0.82982]
[1751410225408,25.97978,2409.9,2409.7,1.53773]
[1751410225913,25.97978,2409.9,2409.8,0.82982]
[1751410227207,25.97978,2409.9,2409.7,1.53772]
[1751410228206,27.43098,2409.9,2409.7,1.53772]
[1751410228609,26.6012,2409.9,2409.7,1.53772]
[1751410229005,27.43101,2409.9,2409.7,1.53772]
[1751410229916,27.43101,2409.9,2409.8,0.82982]
[1751410230811,1.4512,2409.9,2409.8,0.82982]
[1751410231016,25.145,2409.9,2409.8,0.82982]
[1751410231504,0.82977,2410.0,2409.9,0.82978]
[1751410231710,25.97477,2410.0,2409.9,0.82978]
[1751410232416,0.82977,2410.0,2409.9,0.82978]
[1751410232612,25.97477,2410.0,2409.9,0.82978]
[1751410233116,27.40187,2410.0,2409.9,0.82978]
[1751410234112,0.82979,2409.9,2409.8,0.82979]
[1751410234312,0.82979,2409.9,2409.7,0.7079]
[1751410234513,2.20579,2409.9,2409.8,0.82982]
[1751410234813,2.20579,2409.9,2409.7,1.53773]
[1751410235313,0.82982,2409.8,2409.7,1.53773]
[1751410235816,0.82982,2409.8,2409.7,3.23429786]
[1751410236013,1.376,2409.9,2409.8,0.82982]
[1751410236312,0.82982,2409.8,2409.7,2.40446786]
[1751410236508,26.83956786,2409.8,2409.3,1.69656786]
[1751410236703,0.82997,2409.4,2409.2,2.52657786]
[1751410237203,0.82999,2409.3,2409.2,2.52657786]
[1751410237415,2.16958,2409.4,2409.2,2.52657786]
[1751410237813,2.16958,2409.4,2409.2,0.83001]
[1751410238017,0.82999,2409.3,2409.2,0.83001]
[1751410238320,0.83003,2409.2,2409.1,3.14201758]
[1751410238612,0.83003,2409.2,2409.1,3.97207758]
[1751410243317,0.83,2409.3,2409.2,0.83]
[1751410244517,0.83,2409.3,2409.1,3.97204758]
[1751410244708,0.83003,2409.2,2409.1,3.97204758]
[1751410244906,0.83001,2409.3,2409.2,0.83002]
[1751410246713,0.83001,2409.3,2409.1,3.97204758]
[1751410248418,0.83001,2409.3,2409.2,0.83003]
[1751410250320,3.52488,2409.4,2409.3,0.82999]
[1751410250720,3.52488,2409.4,2409.2,0.83]
[1751410252119,0.82999,2409.3,2409.2,0.83]
[1751410252423,2.6949,2409.4,2409.2,0.83]
[1751410252919,0.82999,2409.3,2409.2,0.83]
[1751410253820,0.82999,2409.3,2409.1,3.97205758]
[1751410254322,0.82999,2409.3,2409.2,0.83002]
[1751410256826,3.52488,2409.4,2409.2,0.83002]
[1751410257528,0.82999,2409.3,2409.2,0.83002]
[1751410259227,3.52488,2409.4,2409.3,0.82999]
[1751410259420,3.52488,2409.4,2409.2,0.83]
[1751410259921,0.82999,2409.3,2409.2,0.83]
[1751410260626,2.6949,2409.4,2409.2,0.83]
[1751410260821,0.82999,2409.3,2409.2,0.83]
[1751410262028,0.82999,2409.3,2409.1,3.14201758]
[1751410262228,0.83003,2409.2,2409.1,0.7174]
[1751410262922,3.82221758,2409.3,2408.8,3.94496758]
[1751410263125,0.83009,2409.0,2408.9,0.6911]
[1751410263330,5.89739758,2409.1,2408.7,0.83018]
[1751410263627,2.22776,2408.9,2408.7,1.52128]
[1751410265737,0.83016,2408.8,2408.7,1.52128]
[1751410265937,2.22776,2408.9,2408.7,1.52128]
[1751410266233,0.83016,2408.8,2408.7,0.6911]
[1751410268839,4.52631758,2408.9,2408.3,1.55012]
[1751410269040,0.83027,2408.5,2408.4,0.6749]
[1751410269236,0.83034,2408.3,2408.1,0.33248885]
[1751410269439,0.83039,2408.2,2408.1,0.83039]
[1751410269842,1.4169,2408.4,2408.0,0.6749]
[1751410269843,0.8304,2408.1,2408.0,0.6749]
[1751410270138,0.8304,2408.1,2408.0,1.50534]
[1751410271542,0.83039,2408.2,2408.0,1.50534]
[1751410271944,0.83037,2408.2,2408.1,0.83039]
[1751410272151,0.83037,2408.2,2408.0,1.5053]
[1751410272546,0.83037,2408.2,2408.1,3.25501758]
[1751410272852,0.83035,2408.3,2408.1,3.25501758]
[1751410273050,2.24722,2408.4,2408.2,0.83035]
[1751410273345,0.6874,2408.5,2408.1,2.42461758]
[1751410273346,0.83029,2408.5,2408.3,3.25494758]
[1751410273544,0.83029,2408.5,2408.4,0.6777]
[1751410273851,0.83029,2408.5,2408.4,1.508]
[1751410274550,2.20269,2408.5,2408.4,0.6777]
[1751410274851,2.20269,2408.5,2408.4,1.508]
[1751410275152,2.20269,2408.5,2408.4,0.6777]
[1751410275448,2.20269,2408.5,2408.4,1.508]
[1751410275642,2.20269,2408.5,2408.4,0.6777]
[1751410275849,0.8303,2408.4,2408.3,0.83031]
[1751410276043,2.2027,2408.4,2408.3,0.83031]
[1751410276548,1.3724,2408.4,2408.3,0.83031]
[1751410277151,0.83033,2408.3,2408.2,3.93265758]
[1751410277353,0.83033,2408.3,2408.2,1.50804]
[1751410277949,2.91452,2408.4,2408.3,0.83033]
[1751410278346,0.83033,2408.3,2408.2,1.50805]
[1751410279444,2.91451,2408.4,2408.3,0.83033]
[1751410279644,2.9145,2408.4,2408.3,0.83033]
[1751410280452,0.83033,2408.3,2408.2,0.6777]
[1751410280753,2.23573,2408.3,2408.2,0.6777]
[1751410281451,2.23573,2408.3,2408.1,0.83038]
[1751410281452,0.83037,2408.2,2408.1,0.83038]
[1751410281647,0.8304,2408.1,2408.0,3.96583758]
[1751410281853,0.8304,2408.1,2408.0,1.54122]
[1751410282353,2.2371,2408.1,2408.0,0.7108]
[1751410282553,2.2371,2408.1,2408.0,1.54124]
[1751410283449,1.4067,2408.1,2408.0,1.54124]
[1751410283648,0.7054,2408.2,2408.1,0.8304]
[1751410283843,12.51535,2408.3,2408.2,0.83037]
[1751410284249,0.8304,2408.1,2408.0,0.7108]
[1751410284457,0.83043,2408.0,2407.9,0.83046]
[1751410284753,2.92479,2408.2,2408.1,0.8304]
[1751410285350,2.92479,2408.2,2408.1,1.5609]
[1751410285550,2.0944,2408.2,2408.1,1.5609]
[1751410285758,11.685,2408.3,2408.2,0.83037]
[1751410286146,0.83033,2408.3,2408.2,0.83037]
[1751410288161,37.5388,2408.4,2408.1,1.56088]
[1751410288660,38.8996,2408.4,2408.1,1.56088]
[1751410288862,2.19115,2408.3,2408.1,1.56088]
[1751410289163,0.83037,2408.2,2408.1,0.7305]
[1751410289851,0.83037,2408.2,2408.1,1.56089]
[1751410291262,2.19116,2408.3,2408.1,1.56089]
[1751410291462,0.83037,2408.2,2408.1,1.56089]
[1751410292262,2.19116,2408.3,2408.1,1.56089]
[1751410292463,2.19116,2408.3,2408.2,0.83037]
[1751410292663,2.19116,2408.3,2408.1,1.56088]
[1751410293763,2.19116,2408.3,2408.2,0.83037]
[1751410294157,2.19116,2408.3,2408.1,1.56088]
[1751410294358,2.19116,2408.3,2408.2,0.83037]
[1751410294858,0.83036,2408.3,2408.2,0.83037]
[1751410295053,25.97136,2408.3,2408.2,0.83037]
[1751410296565,25.141,2408.3,2408.2,0.83037]
[1751410297254,11.686,2408.4,2408.3,0.83033]
[1751410297454,37.6573,2408.4,2408.3,0.83033]
[1751410297964,0.8303,2408.4,2408.3,0.83033]
[1751410298163,25.9713,2408.4,2408.3,0.83033]
[1751410300958,25.141,2408.4,2408.3,0.83033]
[1751410302065,0.83029,2408.5,2408.4,0.8303]
[1751410302362,25.97029,2408.5,2408.4,0.8303]
[1751410302758,0.83029,2408.5,2408.4,0.8303]
[1751410302964,25.14,2408.5,2408.4,0.83027]
[1751410304366,25.14,2408.5,2408.3,0.83031]
[1751410304559,0.8303,2408.4,2408.3,0.83031]
[1751410305759,0.83033,2408.3,2408.2,3.25496758]
[1751410306158,0.83037,2408.2,2408.1,2.2223]
[1751410306364,0.83037,2408.2,2408.1,1.5609]
[1751410306666,0.83037,2408.2,2408.1,0.7305]
[1751410307364,0.83037,2408.2,2408.1,1.5609]
[1751410307767,0.83044,2408.0,2407.9,0.83045]
[1751410307960,0.83044,2408.0,2407.9,1.50635]
[1751410308368,4.48871758,2408.1,2407.8,0.90276191]
[1751410308564,0.83047,2407.9,2407.7,1.50641]
[1751410308866,2.17797,2408.0,2407.8,0.83051]
[1751410310267,36.821,2408.1,2407.9,0.83046]
[1751410310466,37.65143,2408.1,2408.0,0.6803]
[1751410310664,0.83043,2408.1,2408.0,0.6803]
[1751410310967,25.139,2408.2,2407.7,3.25512758]
[1751410311167,0.83048,2407.9,2407.8,0.6803]
[1751410311966,0.83048,2407.9,2407.8,1.51081]
[1751410313568,0.83048,2407.9,2407.8,0.6803]
[1751410314262,0.83048,2407.9,2407.8,1.51081]
[1751410315171,0.83048,2407.9,2407.8,0.6803]
[1751410315965,2.42461758,2408.0,2407.5,0.90286874]
[1751410316271,0.83057,2407.7,2407.6,0.6692]
[1751410318973,2.18687,2407.7,2407.6,1.49978]
[1751410319868,2.18687,2407.7,2407.6,0.6692]
[1751410320875,2.18687,2407.7,2407.6,1.49978]
[1751410321167,2.18687,2407.7,2407.6,0.6692]
[1751410321368,2.18687,2407.7,2407.6,1.49978]
[1751410321563,2.18687,2407.7,2407.6,0.6692]
[1751410322973,2.18684,2407.7,2407.6,1.49978]
[1751410323174,0.83052,2407.8,2407.7,0.83053]
[1751410323476,0.83054,2407.7,2407.6,1.49975]
[1751410325375,0.83054,2407.7,2407.6,0.6692]
[1751410328286,2.27694,2407.7,2407.6,0.6692]
[1751410330888,0.83068,2407.3,2407.2,2.42461758]
[1751410331087,0.83068,2407.3,2407.2,3.08771758]
[1751410332790,0.83068,2407.3,2406.9,0.83082]
[1751410332791,2.07682,2407.2,2406.9,0.83082]
[1751410332986,0.8308,2407.0,2406.9,0.6631]
[1751410333292,0.8108,2407.0,2406.9,0.6631]
[1751410334687,0.83077,2407.1,2406.9,1.49391]
[1751410334992,2.22437,2407.1,2406.9,1.49391]
[1751410335193,2.22437,2407.1,2407.0,0.83078]
[1751410335591,0.83077,2407.1,2407.0,0.83078]
[1751410335995,0.83074,2407.2,2407.0,3.25539758]
[1751410336187,13.0796,2407.3,2407.1,0.83072]
[1751410336385,0.83067,2407.4,2407.2,3.94780758]
[1751410336589,12.51667,2407.4,2407.2,3.94780758]
[1751410337595,0.83068,2407.3,2407.2,3.94780758]
[1751410337791,13.76267,2407.4,2406.8,0.33566656]
[1751410338097,0.83078,2407.0,2406.9,3.25542758]
[1751410338297,0.83078,2407.1,2406.9,3.25542758]
[1751410339396,0.83078,2407.1,2407.0,0.83078]
[1751410339893,2.21314,2407.2,2407.0,0.83078]
[1751410340288,2.21314,2407.2,2407.1,0.6881]
[1751410340786,2.21311,2407.2,2407.1,0.6881]
[1751410343497,2.21311,2407.2,2407.1,1.51885]
[1751410343702,1.3824,2407.2,2407.1,1.51885]
[1751410343999,2.21311,2407.2,2407.1,1.51885]
[1751410344398,0.83069,2407.3,2407.2,0.83071]
[1751410344598,12.51568,2407.3,2407.2,0.83071]
[1751410345700,12.51568,2407.3,2407.1,3.94344758]
[1751410346401,12.51568,2407.3,2407.2,0.83071]
[1751410347300,0.83067,2407.4,2407.2,0.83071]
[1751410347603,0.83067,2407.4,2407.3,0.83068]
[1751410347604,38.2313,2407.4,2407.3,0.83068]
[1751410349600,2.23494,2407.4,2407.3,0.83068]
[1751410350301,2.23494,2407.4,2407.2,0.83069]
[1751410350901,0.83068,2407.3,2407.2,0.83069]
[1751410351102,2.23497,2407.4,2407.3,0.83068]
[1751410351304,2.23497,2407.4,2407.1,3.83961758]
[1751410351503,2.23497,2407.4,2407.3,0.83068]
[1751410351898,2.23497,2407.4,2407.2,0.83069]
[1751410352103,2.23497,2407.4,2407.3,0.83068]
[1751410354900,1.4043,2407.4,2407.3,0.83068]
[1751410355301,2.23494,2407.4,2407.3,0.83068]
[1751410360612,1.4043,2407.4,2407.3,0.83068]
[1751410361112,2.23494,2407.4,2407.3,0.83068]
[1751410365220,0.83068,2407.3,2407.2,3.25529758]
[1751410365511,25.14,2407.3,2407.2,3.25529758]
[1751410367414,25.97068,2407.3,2407.2,3.25529758]
[1751410369014,25.14,2407.3,2407.2,3.25529758]
[1751410369411,25.97068,2407.3,2407.2,3.25529758]
[1751410371011,25.97068,2407.3,2407.2,2.42461758]
[1751410371815,0.83071,2407.2,2407.1,1.51883]
[1751410380720,25.8392,2407.3,2407.1,0.6881]
[1751410381017,26.66991,2407.3,2407.2,0.83071]
[1751410381418,25.97071,2407.3,2407.2,0.83071]
[1751410382218,25.14,2407.3,2407.2,0.83071]
[1751410382722,25.97068,2407.3,2407.2,0.83071]
[1751410384225,0.83071,2407.2,2407.1,1.51882]
[1751410385824,0.83071,2407.2,2407.1,3.21896814]
[1751410386924,25.97071,2407.3,2407.2,0.83071]
[1751410387124,0.83071,2407.2,2407.1,3.21896814]
[1751410387424,0.83077,2407.1,2407.0,0.83078]
[1751410387625,1.48927,2407.1,2407.0,0.83078]
[1751410387825,0.83078,2407.0,2406.9,2.53093814]
[1751410388122,2.23818,2407.0,2406.9,2.53093814]
[1751410389223,2.23818,2407.0,2406.9,0.83079]
[1751410389525,0.83085,2406.9,2406.8,0.83085]
[1751410389724,26.5922,2406.9,2406.7,0.83086]
[1751410390023,26.5922,2406.9,2406.6,0.7029]
[1751410390226,0.83086,2406.8,2406.7,0.83087]
[1751410390524,2.28906,2406.8,2406.7,0.83087]
[1751410390922,1.4582,2406.8,2406.7,0.83087]
[1751410391424,2.28905,2406.8,2406.7,0.83087]
[1751410391622,0.83081,2407.0,2406.7,2.42984014]
[1751410391822,25.135,2406.9,2406.8,0.83085]
[1751410392018,25.96582,2406.9,2406.8,0.83085]
[1751410392225,25.135,2406.9,2406.8,0.83085]
[1751410394129,25.96582,2406.9,2406.8,0.83085]
[1751410398032,13.1422,2407.0,2406.9,0.83082]
[1751410398235,36.818,2407.0,2406.9,3.26066014]
[1751410398537,25.134,2407.0,2406.9,3.26066014]
[1751410401036,1.49454,2407.2,2407.0,0.83078]
[1751410401238,13.17854,2407.2,2407.1,0.7143]
[1751410401439,39.68454,2407.2,2407.1,0.7143]
[1751410404436,0.83075,2407.1,2407.0,0.83078]
[1751410404842,2.24075,2407.1,2407.0,0.83078]
[1751410409746,2.24075,2407.1,2407.0,2.53123132]
[1751410413450,2.24075,2407.1,2407.0,0.83078]
[1751410413651,2.24075,2407.1,2407.0,2.53123132]
[1751410414558,3.13375132,2407.3,2407.2,0.83071]
[1751410414757,12.51175,2407.2,2407.1,0.6969]
[1751410415146,12.51175,2407.2,2407.1,1.52762]
[1751410415354,12.51175,2407.2,2407.1,0.6969]
[1751410415556,13.87735,2407.2,2407.1,0.6969]
[1751410417158,13.87735,2407.2,2407.0,1.70045132]
[1751410417159,0.83075,2407.1,2407.0,1.70045132]
[1751410417450,0.83078,2407.0,2406.9,3.20974132]
[1751410420761,27.37047,2407.1,2407.0,0.83078]
[1751410420955,25.96077,2407.1,2407.0,0.83078]
[1751410421860,1.55574,2407.2,2407.1,0.83075]
[1751410422059,38.36574,2407.2,2407.1,0.83075]
[1751410424062,38.36574,2407.2,2407.1,2.53120132]
[1751410427867,38.36574,2407.2,2407.1,1.70045132]
[1751410429568,38.36574,2407.2,2407.1,2.53120132]
[1751410429962,13.23674,2407.2,2407.1,2.53120132]
[1751410430166,37.533,2407.2,2407.1,2.53120132]
[1751410430366,61.87945,2407.6,2407.1,1.70045132]
[1751410430670,0.83068,2407.3,2407.2,0.6796]
[1751410430970,25.95668,2407.3,2407.2,0.6796]
[1751410431866,1.4312,2407.4,2407.2,0.6796]
[1751410431867,59.803,2407.6,2407.2,0.6796]
[1751410432062,36.803,2407.5,2407.4,2.53107132]
[1751410432767,37.63361,2407.5,2407.4,2.53107132]
[1751410433676,25.95661,2407.5,2407.4,2.53107132]
[1751410434363,25.95561,2407.5,2407.4,2.53107132]
[1751410434774,25.125,2407.5,2407.4,2.53107132]
[1751410435775,25.95561,2407.5,2407.4,2.53107132]
[1751410437474,25.125,2407.5,2407.4,2.53107132]
[1751410437674,25.95561,2407.5,2407.4,2.53107132]
[1751410439276,25.95561,2407.5,2407.4,1.70045132]
[1751410439469,25.95561,2407.5,2407.4,2.53109132]
[1751410440072,0.83061,2407.5,2407.4,2.53109132]
[1751410440273,72.3096,2407.6,2407.5,0.83061]
[1751410440475,97.4316,2407.6,2407.5,0.83061]
[1751410440671,97.4316,2407.6,2407.5,1.55021]
[1751410440873,72.3096,2407.6,2407.5,1.55021]
[1751410441072,97.4316,2407.6,2407.5,1.55021]
[1751410443079,71.479,2407.6,2407.5,1.55021]
[1751410443274,96.6,2407.6,2407.5,1.55021]
[1751410444165,97.43058,2407.6,2407.5,1.55021]
[1751410445077,96.6,2407.6,2407.5,1.55021]
[1751410445270,84.924,2407.6,2407.5,1.55021]
[1751410445472,85.75458,2407.6,2407.5,1.55021]
[1751410449572,84.924,2407.6,2407.5,1.55021]
[1751410449773,85.75458,2407.6,2407.5,1.55021]
[1751410450277,84.924,2407.6,2407.5,1.55021]
[1751410450579,85.75458,2407.6,2407.5,1.55021]
[1751410452078,0.83072,2407.2,2407.1,2.53118132]
[1751410452281,25.94872,2407.2,2407.1,2.53118132]
[1751410453081,25.118,2407.2,2407.1,2.53118132]
[1751410454979,25.94871,2407.3,2407.2,0.83071]
[1751410455182,27.29881,2407.3,2407.1,2.53117132]
[1751410455374,27.29881,2407.3,2407.2,0.83071]
[1751410457082,26.4681,2407.3,2407.1,2.53117132]
[1751410457275,27.2988,2407.3,2407.2,0.83071]
[1751410458574,26.4681,2407.3,2407.2,0.83071]
[1751410458775,27.29878,2407.3,2407.2,2.53116132]
[1751410459181,26.4681,2407.3,2407.2,2.53116132]
[1751410459482,27.29878,2407.3,2407.2,2.53116132]
[1751410460283,26.4681,2407.3,2407.2,2.53116132]
[1751410460480,0.6905,2407.4,2407.3,0.83068]
[1751410460678,25.117,2407.4,2407.3,0.83068]
[1751410460880,25.117,2407.4,2407.3,1.54668]
[1751410461286,25.94764,2407.4,2407.3,1.54668]
[1751410461984,25.117,2407.4,2407.3,1.54668]
[1751410464086,0.83063,2407.5,2407.4,0.83064]
[1751410464384,27.33923,2407.5,2407.4,2.53109132]
[1751410464786,26.5086,2407.5,2407.4,2.53109132]
[1751410466389,27.33921,2407.5,2407.4,2.53109132]
[1751410470990,27.33921,2407.5,2407.4,1.70045132]
[1751410471494,27.33921,2407.5,2407.4,2.53109132]
[1751410471692,0.83064,2407.4,2407.3,1.54666]
[1751410471898,2.24744,2407.4,2407.3,2.41645132]
[1751410472283,2.90904,2407.4,2407.3,2.41645132]
[1751410473588,2.90904,2407.4,2407.3,3.24713132]
[1751410480295,2.90904,2407.4,2407.3,2.41645132]
[1751410481300,2.90904,2407.4,2407.3,1.70045132]
[1751410481596,2.90904,2407.4,2407.3,2.53113132]
[1751410484301,2.24744,2407.4,2407.3,2.53113132]
[1751410485000,2.24744,2407.4,2407.3,1.70045132]
[1751410485502,2.24744,2407.4,2407.3,2.53113132]
[1751410486401,2.24744,2407.4,2407.3,1.70045132]
[1751410488504,2.24744,2407.4,2407.3,2.53113132]
[1751410488707,25.79,2407.5,2407.3,2.53113132]
[1751410488903,26.62061,2407.5,2407.4,0.6879]
[1751410489205,26.62061,2407.5,2407.4,1.51854]
[1751410489906,1.50361,2407.5,2407.4,1.51854]
[1751410490101,0.83058,2407.6,2407.5,0.83059]
[1751410490306,0.83056,2407.7,2407.6,0.83057]
[1751410490607,25.11,2407.7,2407.6,0.83057]
[1751410490909,11.673,2407.8,2407.7,0.83054]
[1751410491107,36.783,2407.8,2407.7,2.53099132]
[1751410491411,37.6135,2407.8,2407.7,1.70045132]
[1751410491806,0.83054,2407.7,2407.6,1.70045132]
[1751410492107,2.17404,2407.7,2407.6,1.70045132]
[1751410493906,0.83058,2407.6,2407.5,0.83061]
[1751410494206,25.93958,2407.6,2407.5,0.83061]
[1751410495917,25.93958,2407.6,2407.4,3.94655958]
[1751410496122,0.83061,2407.5,2407.4,3.94655958]
[1751410496415,0.83061,2407.5,2407.0,2.42803958]
[1751410496416,0.83072,2407.2,2407.0,2.42803958]
[1751410496616,25.9387,2407.3,2407.0,3.14693958]
[1751410496818,25.9387,2407.3,2407.2,0.83071]
[1751410498521,25.9387,2407.3,2407.1,0.83072]
[1751410499515,25.9387,2407.3,2407.2,0.83071]
[1751410500522,25.108,2407.3,2407.2,3.25874958]
[1751410503323,25.93868,2407.3,2407.2,3.25874958]
[1751410503824,25.93868,2407.3,2407.2,2.42803958]
[1751410504517,0.83068,2407.3,2407.2,2.42803958]
[1751410504724,0.83065,2407.4,2407.3,0.83066]
[1751410505319,0.83065,2407.4,2407.3,1.52146]
[1751410505524,25.93664,2407.5,2407.3,1.52146]
[1751410505713,25.93664,2407.5,2407.4,3.25867958]
[1751410507724,0.83064,2407.4,2407.3,1.52145]
[1751410507924,0.83064,2407.4,2407.3,0.6908]
[1751410508118,0.83064,2407.4,2407.3,1.52148]
[1751410509824,0.83064,2407.4,2407.3,0.6908]
[1751410510221,0.83068,2407.3,2407.2,3.25872958]
[1751410510417,2.29247,2407.4,2407.3,0.83068]
[1751410513325,1.4618,2407.4,2407.3,0.83068]
[1751410513824,2.29244,2407.4,2407.3,0.83068]
[1751410514027,0.83064,2407.4,2407.3,0.83068]
[1751410514625,26.63844,2407.5,2407.4,0.83064]
[1751410515126,0.83065,2407.4,2407.3,0.83065]
[1751410516328,26.63844,2407.5,2407.4,0.83064]
[1751410517330,25.93664,2407.5,2407.4,0.83064]
[1751410517523,0.83065,2407.4,2407.3,0.83065]
[1751410518026,25.93465,2407.4,2407.3,0.83065]
[1751410519627,25.104,2407.4,2407.3,0.83065]
[1751410519831,25.93464,2407.4,2407.3,2.53044652]
[1751410523134,25.93464,2407.4,2407.3,1.69979652]
[1751410523931,25.93464,2407.4,2407.3,2.53047652]
[1751410524928,25.104,2407.4,2407.1,0.6757]
[1751410525232,0.83071,2407.3,2407.1,3.20624652]
[1751410525432,25.93466,2407.4,2407.2,0.83071]
[1751410525630,25.93466,2407.4,2407.3,1.69979652]
[1751410536543,25.93464,2407.4,2407.3,2.53047652]
[1751410536840,0.83064,2407.4,2407.3,1.69979652]
[1751410537040,25.92964,2407.4,2407.3,1.69979652]
[1751410537341,0.83068,2407.3,2407.2,0.83069]